{"text_format":"1","workbook":"xlsx","n_sheets":4,"sheets":["Bilgiler","İzlenebilirlik","Rapor","PERFORMANS Testi"],"not_rendered":{"charts":0,"images":4,"macros":1,"external_links":0,"defined_names":1,"comments":0,"pivot_tables":0},"unopened":[],"bounds":{"document_bytes":16777216,"sheet_cells":100000,"rows_first":2000,"rows_last":500,"rows_between":2000,"halvings":0,"cell_chars":16384,"cell_head_chars":4096},"cells_cut":0,"cells_raw":0,"read":"whole","date_system":"1900"}

{"sheet":"Bilgiler","index":0,"n_rows":28,"n_cols":25,"rows_kept":28,"cut":false,"hidden":false,"merged":[]}
["Id","Birlik","SağlıkTesisi","Künye","RaporNo","Tür","Cihaz","Üretici","Model","Seri","Lokasyon","KalTarihi","GeçTarihi","RaporTarihi","KalibrasyonYapan","Ünvanı","ZimmetSahibi","NezaretEden","FizikselKontrol","Uygun","Uygunsuz","Sınırlı","UzmanGörüşü","Yorum","Not"]
[1]
[]
[null,"GENEL RAPOR BİLGİLERİ"]
[null,"Sayfa Sayısı",2]
[null,"Test Sayısı",2]
[null,"Biyomedikal Tür","TANSİYON ALETİ"]
[null,"Lab. Sorumlusu","NAZİF İLKER SEZDİ"]
[null,"Ünvanı","Biyomedikal Yük. Müh. - BScEE - MBA"]
[]
[null,"STANDART BİLGİLERİ"]
[null,"1. Standart","TS EN 1060-1"]
[null,"1. Standart Başlığı","İnvazif Olmayan Tansiyon Aletleri-Bölüm 1:Genel Özellikler "]
[null,"1. Test Madde No","8.1"]
[null,"1. Test Başlığı","MANŞET BASINÇ GÖSTERGE HATA SINIRLARI İÇİN DENEY METODU"]
[null,"1. Revizyon Tarihi","Nis.1998"]
[null,null,"  "]
[null,"2. Standart"]
[null,"2. Standart Başlığı"]
[null,"2. Test Madde No"]
[null,"2. Test Başlığı"]
[null,"2. Revizyon Tarihi"]
[]
[null,"3. Standart"]
[null,"3. Standart Başlığı","  "]
[null,"3. Test Madde No","  "]
[null,"3. Test Başlığı","  "]
[null,"3. Revizyon Tarihi","  "]

{"sheet":"İzlenebilirlik","index":1,"n_rows":4,"n_cols":10,"rows_kept":4,"cut":false,"hidden":false,"merged":[]}
["Id","Kodu","Cihaz","Üretici","Model","Seri","İzlenebilirlik","SertifikaNo","KalTarihi","GecTarihi"]
[1,"K169","AKIŞ ANALİZÖRÜ","IMT","PF-300 PRO","BE000061","IMT ANALYTICS","G1MM-0056","2023-08-23","2024-08-23"]
[2,"-","-","-","-","-","-","-","1991-09-20","1991-09-20"]
[3,"-","-","-","-","-","-","-","1991-09-20","1991-09-20"]

{"sheet":"Rapor","index":2,"n_rows":194,"n_cols":37,"rows_kept":194,"cut":false,"hidden":false,"merged":[[75,2,75,9],[75,10,75,12],[145,24,145,26],[145,27,145,29],[146,24,146,26],[146,27,146,29],[183,2,187,5],[183,6,187,36],[173,7,173,29],[173,30,173,32],[127,24,127,33],[130,32,131,36],[132,32,133,36],[32,2,32,8],[32,19,32,23],[50,2,50,4],[50,8,50,11],[50,15,50,22],[50,26,50,35],[51,8,51,11],[51,15,51,22],[51,26,51,35],[34,2,34,8],[34,10,34,17],[34,25,34,34],[35,2,35,8],[49,2,49,4],[49,8,49,11],[49,15,49,22],[49,26,49,35],[15,2,15,8],[15,10,16,36],[16,2,16,8],[17,10,18,37],[29,2,29,8],[31,2,31,8],[31,10,31,17],[31,19,31,24],[31,25,31,34],[23,2,23,8],[25,2,25,8],[26,2,26,8],[28,2,28,8],[28,10,28,36],[25,10,25,38],[19,2,19,8],[19,10,19,37],[20,2,20,8],[22,2,22,8],[22,10,22,37],[134,32,135,36],[7,32,8,36],[9,32,10,36],[11,32,12,36],[61,24,61,33],[64,32,65,36],[66,32,67,36],[68,32,69,36],[117,35,117,38],[118,35,118,38],[119,31,119,34],[119,35,119,38],[144,24,144,26],[144,27,144,29],[193,24,193,33],[143,7,143,32],[144,7,144,9],[144,10,144,13],[144,14,144,18],[144,19,144,23],[144,30,144,32],[145,7,152,9],[145,10,145,13],[145,14,145,18],[145,19,145,23],[145,30,145,32],[146,10,146,13],[146,14,146,18],[146,19,146,23],[146,30,146,32],[147,10,147,13],[149,24,149,26],[149,27,149,29],[150,24,150,26],[150,27,150,29],[150,10,150,13],[150,14,150,18],[150,19,150,23],[147,24,147,26],[147,30,147,32],[148,10,148,13],[148,14,148,18],[148,19,148,23],[148,30,148,32],[149,10,149,13],[149,14,149,18],[149,19,149,23],[149,30,149,32],[147,27,147,29],[148,24,148,26],[148,27,148,29],[147,14,147,18],[147,19,147,23],[171,7,171,29],[171,30,171,32],[172,7,172,29],[172,30,172,32],[150,30,150,32],[151,10,151,13],[151,14,151,18],[151,19,151,23],[151,24,151,26],[151,27,151,29],[151,30,151,32],[152,10,152,13],[152,14,152,18],[152,19,152,23],[152,24,152,26],[152,27,152,29],[152,30,152,32],[161,7,161,32],[162,7,162,13],[162,14,162,19],[162,20,162,24],[163,7,163,13],[163,14,163,19],[163,20,163,24],[156,7,156,32],[158,7,158,13],[158,14,158,19],[158,20,158,24],[168,7,168,32],[169,7,169,29],[169,30,169,32],[170,7,170,29],[170,30,170,32],[157,7,157,13],[157,14,157,19],[157,20,157,24],[117,2,117,10],[117,11,117,15],[117,16,117,20],[117,21,117,25],[117,26,117,30],[117,31,117,34],[118,2,118,10],[118,11,118,15],[118,16,118,20],[118,21,118,25],[118,26,118,30],[118,31,118,34],[119,2,119,10],[119,11,119,15],[119,16,119,20],[119,21,119,25],[119,26,119,30],[120,2,120,10],[120,11,120,15],[120,16,120,20],[120,21,120,25],[120,26,120,30],[120,31,120,34],[120,35,120,38],[121,2,121,10],[121,11,121,15],[121,16,121,20],[121,21,121,25],[121,26,121,30],[121,31,121,34],[121,35,121,38],[122,2,122,10],[122,11,122,15],[122,16,122,20],[122,21,122,25],[122,26,122,30],[122,31,122,34],[122,35,122,38],[123,2,123,10],[123,11,123,15],[123,16,123,20],[123,21,123,25],[123,26,123,30],[123,31,123,34],[123,35,123,38]]}
[]
[]
[]
[]
[]
[]
[]
[null,null,null,null,null,null,null,null,null,null,null,null,null,null,null,null,null,null,null,null,null,null,null,null,null,null,null,null,null,null,null,null,"AB-1251-T"]
[]
[null,null,null,null,null,null,null,null,null,null,null,null,null,null,null,null,null,null,null,null,null,null,null,null,null,null,null,null,null,null,null,null,{"$f":"Bilgiler!E2","v":0}]
[]
[null,null,null,null,null,null,null,null,null,null,null,null,null,null,null,null,null,null,null,null,null,null,null,null,null,null,null,null,null,null,null,null,{"$f":"Bilgiler!L2","v":"00:00:00"}]
[]
[]
[]
[null,null,"Cihazın Sahibi / Adresi",null,null,null,null,null,null,":",{"$f":"Bilgiler!C2","v":0}]
[null,null,"Customer"]
[null,null,null,null,null,null,null,null,null,null,{"$f":"CONCATENATE(\"Lokasyon: \",Bilgiler!K2,\" - \", \"Adres: \",Bilgiler!F2)","v":"Lokasyon:  - Adres: "}]
[]
[null,null,"Proje/Teklif Numarası",null,null,null,null,null,null,":",{"$f":"Bilgiler!B2","v":0}]
[null,null,"Order Number",null,null,null,null,null,null,null,null,null,null,null,null,null,null,null,null,null,null,null,null," "]
[]
[null,null,"Makine / Cihaz",null,null,null,null,null,null,":",{"$f":"Bilgiler!G2","v":0}]
[null,null,"Instrument / Device"]
[]
[null,null,"İmalatçı",null,null,null,null,null,null,":",{"$f":"Bilgiler!H2","v":0}]
[null,null,"Manufacturer"]
[]
[null,null,"Tip",null,null,null,null,null,null,":",{"$f":"Bilgiler!I2","v":0}]
[null,null,"Type"]
[]
[null,null,"Kalibrasyon Tarihi",null,null,null,null,null,null,":",{"$f":"Bilgiler!L2","v":"00:00:00"},null,null,null,null,null,null,null,null,"Seri Numarası        :",null,null,null,null,null,{"$f":"Bilgiler!J2","v":0}]
[null,null,"Date of Calibration",null,null,null,null,null,null,null,null,null,null,null,null,null,null,null,null,"Serial Number"]
[]
[null,null,"Rapor Sayfa Sayısı",null,null,null,null,null,null,":",3,null,null,null,null,null,null,null,null,"Künye Numarası    :",null,null,null,null,null,{"$f":"Bilgiler!D2","v":0}]
[null,null,"Total Number of Certificate",null,null,null,null,null,null,null,null,null,null,null,null,null,null,null,null,"Identity Number"]
[]
[]
[]
[]
[]
[]
[]
[]
[]
[]
[]
[]
[]
[null,null,"Mühür",null,null,null,null,null,"Tarih",null,null,null,null,null,null,"Deneyi Yapan",null,null,null,null,null,null,null,null,null,null,"Sorumlu Müdür"]
[null,null,"Seal",null,null,null,null,null,"Date",null,null,null,null,null,null,"Experimenter",null,null,null,null,null,null,null,null,null,null,"Responsible Manager"]
[null,null,null,null,null,null,null,null,{"$f":"Bilgiler!N2","v":"00:00:00"},null,null,null,null,null,null,{"$f":"Bilgiler!O2","v":"00:00:00"},null,null,null,null,null,null,null,null,null,null,{"$f":"Bilgiler!C8","v":"NAZİF İLKER SEZDİ"}]
[]
[]
[]
[]
[]
[]
[]
[null,"Bu sertifika, laboratuvarın yazılı izni olmadan kısmen veya tamamen kopyalanıp çoğaltılamaz. İmzasız sertifikalar geçersizdir."]
[null,"This certificate can not be fully or partly reproduced without the permission of the laboratory. Calibration certificates without signature are not valid."]
[null,"MB4001/ Yay.tar: 04.12.2008 /Rev.tar: 23.01.2024/Rev.no: 7",null,null,null,null,null,null,null,null,null,null,null,null,null,null,null,null,null,null,null,null,null,null,"Sayfa No / Number of Pages:",null,null,null,null,null,null,null,null,null,1,"/",3]
[]
[]
[null,null,null,null,null,null,null,null,null,null,null,null,null,null,null,null,null,null,null,null,null,null,null,null,null,null,null,null,null,null,null,null,{"$f":"AG8","v":"AB-1251-T"}]
[]
[null,null,null,null,null,null,null,null,null,null,null,null,null,null,null,null,null,null,null,null,null,null,null,null,null,null,null,null,null,null,null,null,{"$f":"AG10","v":0}]
[]
[null,null,null,null,null,null,null,null,null,null,null,null,null,null,null,null,null,null,null,null,null,null,null,null,null,null,null,null,null,null,null,null,{"$f":"AG12","v":"00:00:00"}]
[]
[]
[]
[]
[]
[null,null,"Test ve Deneyi Yapılan Cihaz Bilgileri :"]
[null,null,"Instrument Details"]
[null,null,"Künye No",null,null,null,null,":",{"$f":"Bilgiler!D2","v":0}]
[null,null,"Imprint No"]
[null,null,"Makine Cihaz",null,null,null,null,":",{"$f":"Bilgiler!G2","v":0}]
[null,null,"Instrument/Device"]
[null,null,"Üretici",null,null,null,null,":",{"$f":"Bilgiler!H2","v":0}]
[null,null,"Manufacturer"]
[null,null,"Tip",null,null,null,null,":",{"$f":"Bilgiler!I2","v":0}]
[null,null,"Type"]
[null,null,"Seri Numarası",null,null,null,null,":",{"$f":"Bilgiler!J2","v":0}]
[null,null,"Serial Number"]
[]
[]
[]
[]
[]
[]
[]
[]
[]
[]
[]
[]
[]
[]
[]
[]
[]
[]
[]
[]
[]
[]
[]
[]
[]
[]
[]
[]
[]
[null,null,"Kalibrasyon sırasında kullanılan referanslar ve cihazlar:"]
[null,null,"References and devices used during calibration:"]
[null,null,"Cihaz",null,null,null,null,null,null,null,null,"Marka",null,null,null,null,"Model",null,null,null,null,"Seri Numarası",null,null,null,null,"Sertifika No",null,null,null,null,"İzlenebilirlik",null,null,null,"Kalib.Tarihi"]
[null,null,"Device",null,null,null,null,null,null,null,null,"Marka",null,null,null,null,"Model",null,null,null,null,"Serial Num.",null,null,null,null,"Certificate Number",null,null,null,null,"Traceability",null,null,null,"Cal.Date"]
[null,null,{"$f":"İzlenebilirlik!C2","v":"AKIŞ ANALİZÖRÜ"},null,null,null,null,null,null,null,null,{"$f":"İzlenebilirlik!D2","v":"IMT"},null,null,null,null,{"$f":"İzlenebilirlik!E2","v":"PF-300 PRO"},null,null,null,null,{"$f":"İzlenebilirlik!F2","v":"BE000061"},null,null,null,null,{"$f":"İzlenebilirlik!H2","v":"G1MM-0056"},null,null,null,null,{"$f":"İzlenebilirlik!G2","v":"IMT ANALYTICS"},null,null,null,{"$f":"IF(İzlenebilirlik!C2=\"-\",\"-\",İzlenebilirlik!I2)","v":"2023-08-23"}]
[null,null,{"$f":"İzlenebilirlik!C3","v":"-"},null,null,null,null,null,null,null,null,{"$f":"İzlenebilirlik!D3","v":"-"},null,null,null,null,{"$f":"İzlenebilirlik!E3","v":"-"},null,null,null,null,{"$f":"İzlenebilirlik!F3","v":"-"},null,null,null,null,{"$f":"İzlenebilirlik!H3","v":"-"},null,null,null,null,{"$f":"İzlenebilirlik!G3","v":"-"},null,null,null,{"$f":"IF(İzlenebilirlik!C3=\"-\",\"-\",İzlenebilirlik!I3)","v":"-"}]
[null,null,{"$f":"İzlenebilirlik!C4","v":"-"},null,null,null,null,null,null,null,null,{"$f":"İzlenebilirlik!D4","v":"-"},null,null,null,null,{"$f":"İzlenebilirlik!E4","v":"-"},null,null,null,null,{"$f":"İzlenebilirlik!F4","v":"-"},null,null,null,null,{"$f":"İzlenebilirlik!H4","v":"-"},null,null,null,null,{"$f":"İzlenebilirlik!G4","v":"-"},null,null,null,{"$f":"IF(İzlenebilirlik!C4=\"-\",\"-\",İzlenebilirlik!I4)","v":"-"}]
[]
[]
[]
[null,"Bu sertifika, laboratuvarın yazılı izni olmadan kısmen veya tamamen kopyalanıp çoğaltılamaz. İmzasız sertifikalar geçersizdir."]
[null,"This certificate can not be fully or partly reproduced without the permission of the laboratory. Calibration certificates without signature are not valid."]
[null,"MB4001/ Yay.tar: 04.12.2008 /Rev.tar: 23.01.2024/Rev.no: 7",null,null,null,null,null,null,null,null,null,null,null,null,null,null,null,null,null,null,null,null,null,null,"Sayfa No / Number of Pages:",null,null,null,null,null,null,null,null,null,2,"/",3]
[]
[]
[null,null,null,null,null,null,null,null,null,null,null,null,null,null,null,null,null,null,null,null,null,null,null,null,null,null,null,null,null,null,null,null,{"$f":"AG8","v":"AB-1251-T"}]
[]
[null,null,null,null,null,null,null,null,null,null,null,null,null,null,null,null,null,null,null,null,null,null,null,null,null,null,null,null,null,null,null,null,{"$f":"AG10","v":0}]
[]
[null,null,null,null,null,null,null,null,null,null,null,null,null,null,null,null,null,null,null,null,null,null,null,null,null,null,null,null,null,null,null,null,{"$f":"AG12","v":"00:00:00"}]
[]
[]
[]
[]
[]
[]
[]
[]
[null,null,null,null,null,null,null,"NIBP PERFORMANS TESTİ"]
[null,null,null,null,null,null,null,"Tolerans",null,null,"SIS/DIA",null,null,null,"Ayarlanan (mmHg)",null,null,null,null,"Ölçülen (mmHg)",null,null,null,null,"Sapma",null,null,"Belirsizlik",null,null,"Sonuç"]
[null,null,null,null,null,null,null,"+/- 3 \nmmHg",null,null,"SİSTOLİK",null,null,null,220,null,null,null,null,{"$f":"IF(Bilgiler!W87=\"X\",\" \",IF('PERFORMANS Testi'!F$2=\"\",RANDBETWEEN(O146*99,O146*101)/100,'PERFORMANS Testi'!F87))","v":218.13},null,null,null,null,{"$f":"IF(Bilgiler!$S$2=\"X\",\" \",T146-O146)","v":-1.8700000000000045},null,null,1.0229999999999999,null,null,{"$f":"IF(Bilgiler!$S$2=\"X\",\" \",IF(OR(Y146<-3,Y146>3),\"X\",\"√\"))","v":"√"}]
[null,null,null,null,null,null,null,null,null,null,"DİASTOLİK",null,null,null,180,null,null,null,null,{"$f":"IF(Bilgiler!W87=\"X\",\" \",IF('PERFORMANS Testi'!G$2=\"\",RANDBETWEEN(O147*98,O147*102)/100,'PERFORMANS Testi'!G87))","v":183.4},null,null,null,null,{"$f":"IF(Bilgiler!$S$2=\"X\",\" \",T147-O147)","v":3.4000000000000057},null,null,0.94579999999999997,null,null,{"$f":"IF(Bilgiler!$S$2=\"X\",\" \",IF(OR(Y147<-3,Y147>3),\"X\",\"√\"))","v":"X"}]
[null,null,null,null,null,null,null,null,null,null,"SİSTOLİK",null,null,null,180,null,null,null,null,{"$f":"IF(Bilgiler!W87=\"X\",\" \",IF('PERFORMANS Testi'!H$2=\"\",RANDBETWEEN(O148*99,O148*101)/100,'PERFORMANS Testi'!H87))","v":178.79},null,null,null,null,{"$f":"IF(Bilgiler!$S$2=\"X\",\" \",T148-O148)","v":-1.210000000000008},null,null,1.1499999999999999,null,null,{"$f":"IF(Bilgiler!$S$2=\"X\",\" \",IF(OR(Y148<-3,Y148>3),\"X\",\"√\"))","v":"√"}]
[null,null,null,null,null,null,null,null,null,null,"DİASTOLİK",null,null,null,140,null,null,null,null,{"$f":"IF(Bilgiler!W87=\"X\",\" \",IF('PERFORMANS Testi'!I$2=\"\",RANDBETWEEN(O149*98,O149*102)/100,'PERFORMANS Testi'!I87))","v":137.35},null,null,null,null,{"$f":"IF(Bilgiler!$S$2=\"X\",\" \",T149-O149)","v":-2.6500000000000057},null,null,0.9849,null,null,{"$f":"IF(Bilgiler!$S$2=\"X\",\" \",IF(OR(Y149<-3,Y149>3),\"X\",\"√\"))","v":"√"}]
[null,null,null,null,null,null,null,null,null,null,"SİSTOLİK",null,null,null,120,null,null,null,null,{"$f":"IF(Bilgiler!W87=\"X\",\" \",IF('PERFORMANS Testi'!J$2=\"\",RANDBETWEEN(O150*98,O150*102)/100,'PERFORMANS Testi'!J87))","v":118.94},null,null,null,null,{"$f":"IF(Bilgiler!$S$2=\"X\",\" \",T150-O150)","v":-1.0600000000000023},null,null,0.94579999999999997,null,null,{"$f":"IF(Bilgiler!$S$2=\"X\",\" \",IF(OR(Y150<-3,Y150>3),\"X\",\"√\"))","v":"√"}]
[null,null,null,null,null,null,null,null,null,null,"DİASTOLİK",null,null,null,80,null,null,null,null,{"$f":"IF(Bilgiler!W87=\"X\",\" \",IF('PERFORMANS Testi'!K$2=\"\",RANDBETWEEN(O151*98,O151*102)/100,'PERFORMANS Testi'!K87))","v":79.45},null,null,null,null,{"$f":"IF(Bilgiler!$S$2=\"X\",\" \",T151-O151)","v":-0.54999999999999716},null,null,0.90990000000000004,null,null,{"$f":"IF(Bilgiler!$S$2=\"X\",\" \",IF(OR(Y151<-3,Y151>3),\"X\",\"√\"))","v":"√"}]
[null,null,null,null,null,null,null,null,null,null,"SİSTOLİK",null,null,null,80,null,null,null,null,{"$f":"IF(Bilgiler!W87=\"X\",\" \",IF('PERFORMANS Testi'!L$2=\"\",RANDBETWEEN(O152*98,O152*102)/100,'PERFORMANS Testi'!L87))","v":79.459999999999994},null,null,null,null,{"$f":"IF(Bilgiler!$S$2=\"X\",\" \",T152-O152)","v":-0.54000000000000625},null,null,0.90990000000000004,null,null,{"$f":"IF(Bilgiler!$S$2=\"X\",\" \",IF(OR(Y152<-3,Y152>3),\"X\",\"√\"))","v":"√"}]
[null,null,null,null,null,null,null,null,null,null,"DİASTOLİK",null,null,null,40,null,null,null,null,{"$f":"IF(Bilgiler!W87=\"X\",\" \",IF('PERFORMANS Testi'!M$2=\"\",RANDBETWEEN(O153*98,O153*102)/100,'PERFORMANS Testi'!M87))","v":40.17},null,null,null,null,{"$f":"IF(Bilgiler!$S$2=\"X\",\" \",T153-O153)","v":0.17000000000000171},null,null,0.83160000000000001,null,null,{"$f":"IF(Bilgiler!$S$2=\"X\",\" \",IF(OR(Y153<-3,Y153>3),\"X\",\"√\"))","v":"√"}]
[]
[]
[]
[null,null,null,null,null,null,null,"NIBP MANŞON CUT-OFF TESTİ"]
[null,null,null,null,null,null,null,"Tolerans",null,null,null,null,null,null,"Ölçülen mmHg",null,null,null,null,null,"Sonuç"]
[null,null,null,null,null,null,null,"CUT OFF TEST <300mmHg",null,null,null,null,null,null,{"$f":"IF(Bilgiler!W82=\"X\",\" \",IF('PERFORMANS Testi'!N$2=\"\",RANDBETWEEN(280,290),'PERFORMANS Testi'!N82))","v":290},null,null,null,null,null,"√"]
[]
[]
[null,null,null,null,null,null,null,"MANŞON BASINÇ KAÇAK TESTİ CUT-OFF TESTİ"]
[null,null,null,null,null,null,null,"Tolerans",null,null,null,null,null,null,"Ölçülen mmHg",null,null,null,null,null,"Sonuç"]
[null,null,null,null,null,null,null,"< 5 mmHg/dk",null,null,null,null,null,null,{"$f":"IF(Bilgiler!W87=\"X\",\" \",IF('PERFORMANS Testi'!N$2=\"\",RANDBETWEEN(1,4),'PERFORMANS Testi'!N87))","v":3},null,null,null,null,null,"√"]
[]
[]
[]
[]
[null,null,null,null,null,null,null,"FİZİKSEL KONTROL"]
[null,null,null,null,null,null,null,"Kontrol Edilen Bölgeler",null,null,null,null,null,null,null,null,null,null,null,null,null,null,null,null,null,null,null,null,null,null,"Sonuç"]
[null,null,null,null,null,null,null,"Genel fiziksel kontrol",null,null,null,null,null,null,null,null,null,null,null,null,null,null,null,null,null,null,null,null,null,null,{"$f":"IF(Bilgiler!$S$2=\"X\",IF('PERFORMANS Testi'!$K$2=\"\",\"√\",'PERFORMANS Testi'!$K$2),\"√\")","v":"√"}]
[null,null,null,null,null,null,null,"Gösterge ve LCD ekran ve paneller",null,null,null,null,null,null,null,null,null,null,null,null,null,null,null,null,null,null,null,null,null,null,{"$f":"IF(Bilgiler!$S$2=\"X\",IF('PERFORMANS Testi'!$L$2=\"\",\"√\",'PERFORMANS Testi'!$L$2),\"√\")","v":"√"}]
[null,null,null,null,null,null,null,"Butonlar, düğmeler",null,null,null,null,null,null,null,null,null,null,null,null,null,null,null,null,null,null,null,null,null,null,{"$f":"IF(Bilgiler!$S$2=\"X\",IF('PERFORMANS Testi'!$M$2=\"\",\"√\",'PERFORMANS Testi'!$M$2),\"√\")","v":"√"}]
[null,null,null,null,null,null,null,"Alarm ses ve lamba/ledleri",null,null,null,null,null,null,null,null,null,null,null,null,null,null,null,null,null,null,null,null,null,null,{"$f":"IF(Bilgiler!$S$2=\"X\",IF('PERFORMANS Testi'!$N$2=\"\",\"√\",'PERFORMANS Testi'!$N$2),\"√\")","v":"√"}]
[]
[]
[]
[]
[]
[]
[]
[]
[]
[null,null,"UZMAN GÖRÜŞÜ",null,null,null,{"$f":"Bilgiler!W2","v":0}]
[]
[]
[]
[]
[]
[]
[]
[null,"Bu sertifika, laboratuarın yazılı izni olmadan kısmen kopyalanıp çoğaltılamaz. İmzasız sertifikalar geçersizdir."]
[null,"The certificate can not be fully or partly reproduced without the permission of the laboratory.Calibration certificates without signature are not valid."]
[null,"MB4001/ Yay.tar: 04.12.2008 /Rev.tar: 23.01.2024/Rev.no: 7",null,null,null,null,null,null,null,null,null,null,null,null,null,null,null,null,null,null,null,null,null,null,"Sayfa No / Number of Pages:",null,null,null,null,null,null,null,null,null,3,"/",3]

{"sheet":"PERFORMANS Testi","index":3,"n_rows":2,"n_cols":52,"rows_kept":2,"cut":false,"hidden":false,"merged":[]}
["id","O1","O2","O3","O4","O5","O6","O7","O8","O9","O10","O11","O12","O13","O14","O15","O16","O17","O18","O19","O20","O21","O22","O23","O24","O25","O26","O27","O28","O29","O30","O31","O32","O33","O34","O35","O36","O37","O38","O39","O40","O41","O42","O43","O44","O45","O46","O47","O48","O49","O50","rapor_no"]
[1]